Workbook

Sheet Лист1
F1: Утвердил: | G1: должность | H1: Директор МБОУ СОШ 144
A2: Типовое примерное меню приготавливаемых блюд | G2: фамилия | H2: Долгалева А.В.
A3: Возрастная категория | E3: 7-11 лет | G3: дата | H3: 12 | I3: 1 | J3: 2026
H4: день | I4: месяц | J4: год
A5: Неделя | B5: День недели | C5: Прием пищи | D5: Раздел меню | E5: Блюда | F5: Вес блюда, г | G5: Белки | H5: Жиры | I5: Углеводы | J5: Калорийность | K5: № рецептуры | L5: Цена
A6: 1 | B6: 1 | C6: Завтрак | D6: гор.блюдо | E6: Каша жидкая молочная пшенная | F6: 200 | G6: 8.3 | H6: 10.1 | I6: 37.6 | J6: 274.9 | K6: 54-24к | L6: 23.8
D8: гор.напиток | E8: Кофейный напиток | F8: 200 | G8: 3.9 | H8: 2.9 | I8: 11.2 | J8: 86 | K8: 54-2гн | L8: 18.3
D9: хлеб | E9: Хлеб пшеничный, хлеб ржаной, масло сливочное порциями | F9: 70 | G9: 4.4 | H9: 7.9 | I9: 26.8 | J9: 195.1 | K9: Пром | L9: 20.5
D10: фрукты | E10: Мандарины | F10: 120 | G10: 0.7 | H10: 0.2 | I10: 6.8 | J10: 31.5 | K10: Пром | L10: 28.8
D13: итого | F13: =SUM(F6:F12) -> 590 | G13: =SUM(G6:G12) -> 17.3 | H13: =SUM(H6:H12) -> 21.1 | I13: =SUM(I6:I12) -> 82.4 | J13: =SUM(J6:J12) -> 587.5 | L13: =SUM(L6:L12) -> 91.4
A14: =A6 -> 1 | B14: =B6 -> 1 | C14: Обед | D14: закуска
D15: 1 блюдо | E15: Суп с рыбными консервами ( сайра ) | F15: 250 | G15: 7.4 | H15: 8.4 | I15: 15.7 | J15: 168.3 | K15: 54-27с | L15: 25.61
D16: 2 блюдо | E16: Тефтели из говядины с рисом, соус белый основной | F16: 100 | G16: 12.1 | H16: 12.5 | I16: 7.4 | J16: 190 | K16: 54-16м | L16: 39.83
D17: гарнир | E17: Каша гречневая рассыпчатая | F17: 150 | G17: 8.2 | H17: 6.3 | I17: 35.9 | J17: 233.7 | K17: 54-4г | L17: 13.82
D18: напиток | E18: Компот из облепихи | F18: 200 | G18: 0.2 | H18: 1 | I18: 7.4 | J18: 39 | K18: 54-32хн | L18: 6.76
D19: хлеб бел. | E19: Хлеб пшеничный | F19: 30 | G19: 2.3 | H19: 0.2 | I19: 14.8 | J19: 70.3 | K19: Пром | L19: 2.15
D20: хлеб черн. | E20: Хлеб ржаной | F20: 30 | G20: 2 | H20: 0.4 | I20: 10 | J20: 51.2 | K20: Пром | L20: 3.23
D23: итого | F23: =SUM(F14:F22) -> 760 | G23: =SUM(G14:G22) -> 32.2 | H23: =SUM(H14:H22) -> 28.8 | I23: =SUM(I14:I22) -> 91.2 | J23: =SUM(J14:J22) -> 752.5 | L23: =SUM(L14:L22) -> 91.4
A24: =A6 -> 1 | B24: =B6 -> 1 | C24: Итого за день: | F24: =F13+F23 -> 1350 | G24: =G13+G23 -> 49.5 | H24: =H13+H23 -> 49.9 | I24: =I13+I23 -> 173.6 | J24: =J13+J23 -> 1340 | L24: =L13+L23 -> 182.8
A25: 1 | B25: 2 | C25: Завтрак | D25: гор.блюдо | E25: Жаркое по- домашнему с курицей | F25: 210 | G25: 21.1 | H25: 19.7 | I25: 18.1 | J25: 333.8 | K25: 54-28м | L25: 59.48
D27: гор.напиток | E27: Чай с грушей и апельсином | F27: 200 | G27: 0.3 | H27: 0.1 | I27: 1.7 | J27: 9 | K27: 54-3гн | L27: 9.26
D28: хлеб | E28: Хлеб пшеничный, хлеб ржаной | F28: 60 | G28: 4.3 | H28: 0.6 | I28: 24.8 | J28: 121.5 | K28: Пром | L28: 5.38
D29: фрукты | E29: Яблоко | F29: 100 | G29: 0.4 | H29: 0.4 | I29: 9.8 | J29: 44.4 | K29: Пром | L29: 17.28
D32: итого | F32: =SUM(F25:F31) -> 570 | G32: =SUM(G25:G31) -> 26.1 | H32: =SUM(H25:H31) -> 20.8 | I32: =SUM(I25:I31) -> 54.4 | J32: =SUM(J25:J31) -> 508.7 | L32: =SUM(L25:L31) -> 91.4
A33: =A25 -> 1 | B33: =B25 -> 2 | C33: Обед | D33: закуска
D34: 1 блюдо | E34: Борщ с капустой и картофелем со сметаной | F34: 250 | G34: 5.9 | H34: 7.1 | I34: 12.7 | J34: 138 | K34: 54-2с | L34: 15.8
D35: 2 блюдо | E35: Котлета рыбная любительская ( минтай ), соус молочный натуральный | F35: 120 | G35: 14.3 | H35: 4.3 | I35: 9.3 | J35: 132.9 | K35: 54-14р, 54-5соус | L35: 44.62
D36: гарнир | E36: Рис припущенный | F36: 150 | G36: 3.5 | H36: 4.8 | I36: 35 | J36: 196.8 | K36: 54-6г | L36: 11.69
D37: напиток | E37: Компот из клубники | F37: 200 | G37: 0.1 | H37: 0 | I37: 7.2 | J37: 29.3 | K37: 54-31хн | L37: 8.53
D38: хлеб бел. | E38: Хлеб пшеничный | F38: 60 | G38: 4.6 | H38: 0.5 | I38: 29.5 | J38: 140.6 | K38: Пром | L38: 4.3
D39: хлеб черн. | E39: Хлеб ржаной | F39: 60 | G39: 4 | H39: 0.7 | I39: 20 | J39: 102.5 | K39: Пром | L39: 6.46
D42: итого | F42: =SUM(F33:F41) -> 840 | G42: =SUM(G33:G41) -> 32.4 | H42: =SUM(H33:H41) -> 17.4 | I42: =SUM(I33:I41) -> 113.7 | J42: =SUM(J33:J41) -> 740.1 | L42: =SUM(L33:L41) -> 91.4
A43: =A25 -> 1 | B43: =B25 -> 2 | C43: Итого за день: | F43: =F32+F42 -> 1410 | G43: =G32+G42 -> 58.5 | H43: =H32+H42 -> 38.2 | I43: =I32+I42 -> 168.1 | J43: =J32+J42 -> 1248.8 | L43: =L32+L42 -> 182.8
A44: 1 | B44: 3 | C44: Завтрак | D44: гор.блюдо | E44: Каша жидкая молочная кукурузная | F44: 200 | G44: 5.9 | H44: 5.8 | I44: 33 | J44: 207.8 | K44: 54-1к | L44: 26.95
D46: гор.напиток | E46: Чай с клюквой и сахаром | F46: 200 | G46: 0.2 | H46: 0.1 | I46: 6.8 | J46: 28.9 | K46: 54-10гн | L46: 20.82
D47: хлеб | E47: Хлеб пшеничный, хлеб ржаной, сыр твердых сортов в нарезке | F47: 90 | G47: 11.3 | H47: 9.5 | I47: 24.8 | J47: 229 | K47: Пром | L47: 26.35
D48: фрукты | E48: Яблоко | F48: 100 | G48: 0.4 | H48: 0.4 | I48: 9.8 | J48: 44.4 | K48: Пром | L48: 17.28
D51: итого | F51: =SUM(F44:F50) -> 590 | G51: =SUM(G44:G50) -> 17.8 | H51: =SUM(H44:H50) -> 15.8 | I51: =SUM(I44:I50) -> 74.4 | J51: =SUM(J44:J50) -> 510.1 | L51: =SUM(L44:L50) -> 91.4
A52: =A44 -> 1 | B52: =B44 -> 3 | C52: Обед | D52: закуска
D53: 1 блюдо | E53: Суп картофельный с макаронами | F53: 250 | G53: 6.5 | H53: 3.5 | I53: 23.1 | J53: 149.5 | K53: 54-7с | L53: 16.97
D54: 2 блюдо | E54: Оладьи из печени по- кунцевски, соус красный | F54: 120 | G54: 18.1 | H54: 11.9 | I54: 17.4 | J54: 248.4 | K54: 54-31м | L54: 32.48
D55: гарнир | E55: Каша пшенная рассыпчатая | F55: 150 | G55: 6.4 | H55: 6.5 | I55: 35.5 | J55: 225.8 | K55: 54-5г | L55: 16.2
D56: напиток | E56: Компот из вишни | F56: 200 | G56: 0.3 | H56: 0.1 | I56: 10.2 | J56: 42.8 | K56: 54-6хн | L56: 14.99
D57: хлеб бел. | E57: Хлеб пшеничный | F57: 60 | G57: 4.6 | H57: 0.5 | I57: 29.5 | J57: 140.6 | K57: Пром | L57: 4.3
D58: хлеб черн. | E58: Хлеб ржаной | F58: 60 | G58: 4 | H58: 0.7 | I58: 20 | J58: 102.5 | K58: Пром | L58: 6.46
D61: итого | F61: =SUM(F52:F60) -> 840 | G61: =SUM(G52:G60) -> 39.9 | H61: =SUM(H52:H60) -> 23.2 | I61: =SUM(I52:I60) -> 135.7 | J61: =SUM(J52:J60) -> 909.6 | L61: =SUM(L52:L60) -> 91.4
A62: =A44 -> 1 | B62: =B44 -> 3 | C62: Итого за день: | F62: =F51+F61 -> 1430 | G62: =G51+G61 -> 57.7 | H62: =H51+H61 -> 39 | I62: =I51+I61 -> 210.1 | J62: =J51+J61 -> 1419.7 | L62: =L51+L61 -> 182.8
A63: 1 | B63: 4 | C63: Завтрак | D63: гор.блюдо | E63: Рис припущенный, биточек из говядины, соус сметанный | F63: 255 | G63: 19.5 | H63: 20.4 | I63: 49.9 | J63: 460.3 | K63: 54-7г, 54-6м, 54-1соус | L63: 56.64
D65: гор.напиток | E65: Чай с лимоном и сахаром | F65: 200 | G65: 0.2 | H65: 0.1 | I65: 6.6 | J65: 27.9 | K65: 54-3гн | L65: 5.38
D66: хлеб | E66: Хлеб пшеничный, хлеб ржаной | F66: 60 | G66: 4.3 | H66: 0.6 | I66: 24.8 | J66: 121.5 | K66: Пром | L66: 5.38
D67: фрукты | E67: Мандарины | F67: 100 | G67: 0.8 | H67: 0.2 | I67: 7.5 | J67: 35 | K67: Пром | L67: 24
D70: итого | F70: =SUM(F63:F69) -> 615 | G70: =SUM(G63:G69) -> 24.8 | H70: =SUM(H63:H69) -> 21.3 | I70: =SUM(I63:I69) -> 88.8 | J70: =SUM(J63:J69) -> 644.7 | L70: =SUM(L63:L69) -> 91.4
A71: =A63 -> 1 | B71: =B63 -> 4 | C71: Обед | D71: закуска
D72: 1 блюдо | E72: Суп гороховый | F72: 250 | G72: 8.2 | H72: 3.5 | I72: 18.7 | J72: 138.7 | K72: 54-8с | L72: 23.62
D73: 2 блюдо | E73: Биточек из курицы, соус молочный натуральный | F73: 105 | G73: 16.9 | H73: 4.6 | I73: 13.3 | J73: 162.2 | K73: 54-23м, 54-5соус | L73: 35.5
D74: гарнир | E74: Каша гречневая рассыпчатая | F74: 150 | G74: 8.2 | H74: 6.3 | I74: 35.9 | J74: 233.7 | K74: 54-4г | L74: 13.82
D75: напиток | E75: Компот из свежих яблок | F75: 200 | G75: 0.2 | H75: 0.1 | I75: 9.9 | J75: 41.6 | K75: 54-32хн | L75: 7.7
D76: хлеб бел. | E76: Хлеб пшеничный | F76: 60 | G76: 4.6 | H76: 0.5 | I76: 29.5 | J76: 140.6 | K76: Пром | L76: 4.3
D77: хлеб черн. | E77: Хлеб ржаной | F77: 60 | G77: 4 | H77: 0.7 | I77: 20 | J77: 102.5 | K77: Пром | L77: 6.46
D80: итого | F80: =SUM(F71:F79) -> 825 | G80: =SUM(G71:G79) -> 42.1 | H80: =SUM(H71:H79) -> 15.7 | I80: =SUM(I71:I79) -> 127.3 | J80: =SUM(J71:J79) -> 819.3 | L80: =SUM(L71:L79) -> 91.4
A81: =A63 -> 1 | B81: =B63 -> 4 | C81: Итого за день: | F81: =F70+F80 -> 1440 | G81: =G70+G80 -> 66.9 | H81: =H70+H80 -> 37 | I81: =I70+I80 -> 216.1 | J81: =J70+J80 -> 1464 | L81: =L70+L80 -> 182.8
A82: 1 | B82: 5 | C82: Завтрак | D82: гор.блюдо | E82: Каша молочная Дружба | F82: 200 | G82: 5 | H82: 5.9 | I82: 24 | J82: 168.9 | K82: 54-16к | L82: 25.69
D84: гор.напиток | E84: Какао с молоком сгущенным | F84: 200 | G84: 3.5 | H84: 3.4 | I84: 22.3 | J84: 133.4 | K84: 54-21гн | L84: 19.3
D85: хлеб | E85: Хлеб пшеничный, хлеб ржаной, джем абрикосовый | F85: 90 | G85: 4.5 | H85: 0.6 | I85: 46.4 | J85: 208.4 | K85: Пром | L85: 12.9
D86: фрукты | E86: Мандарины | F86: 130 | G86: 0.8 | H86: 0.2 | I86: 7.5 | J86: 35 | K86: Пром | L86: 33.51
D89: итого | F89: =SUM(F82:F88) -> 620 | G89: =SUM(G82:G88) -> 13.8 | H89: =SUM(H82:H88) -> 10.1 | I89: =I82+I83+I84+I85+I86 -> 100.2 | J89: =SUM(J82:J88) -> 545.7 | L89: =SUM(L82:L88) -> 91.4
A90: =A82 -> 1 | B90: =B82 -> 5 | C90: Обед | D90: закуска
D91: 1 блюдо | E91: Щи из свежей капусты со сметаной | F91: 250 | G91: 5.8 | H91: 7 | I91: 7.1 | J91: 115.3 | K91: 54-1с | L91: 18.54
D92: 2 блюдо | E92: Котлета рыбная любительская ( минтай ), соус белый основной | F92: 120 | G92: 13.5 | H92: 4.6 | I92: 7.9 | J92: 126.4 | K92: 54-14р, 54-2соус | L92: 40.17
D93: гарнир | E93: Макароны отварные с сыром | F93: 150 | G93: 7.9 | H93: 6.8 | I93: 28.7 | J93: 207.7 | K93: 54-1г | L93: 9.6
D94: напиток | E94: Компот из смородины | F94: 200 | G94: 0.3 | H94: 0.1 | I94: 8.4 | J94: 35.5 | K94: 54-7хн | L94: 12.33
D95: хлеб бел. | E95: Хлеб пшеничный | F95: 60 | G95: 4.6 | H95: 0.5 | I95: 29.5 | J95: 140.6 | K95: Пром | L95: 4.3
D96: хлеб черн. | E96: Хлеб ржаной | F96: 60 | G96: 4 | H96: 0.7 | I96: 20 | J96: 102.5 | K96: Пром | L96: 6.46
D99: итого | F99: =SUM(F90:F98) -> 840 | G99: =SUM(G90:G98) -> 36.1 | H99: =SUM(H90:H98) -> 19.7 | I99: =SUM(I90:I98) -> 101.6 | J99: =SUM(J90:J98) -> 728 | L99: =SUM(L90:L98) -> 91.4
A100: =A82 -> 1 | B100: =B82 -> 5 | C100: Итого за день: | F100: =F89+F99 -> 1460 | G100: =G89+G99 -> 49.9 | H100: =H89+H99 -> 29.8 | I100: =I89+I99 -> 201.8 | J100: =J89+J99 -> 1273.7 | L100: =L89+L99 -> 182.8
A101: 2 | B101: 1 | C101: Завтрак | D101: гор.блюдо | E101: Каша жидкая молочная овсяная | F101: 200 | G101: 6.8 | H101: 7.4 | I101: 24.6 | J101: 192.7 | K101: 54-22,к | L101: 22.75
D103: гор.напиток | E103: Кофейный напиток с молоком | F103: 200 | G103: 3.9 | H103: 2.9 | I103: 11.2 | J103: 86 | K103: 54-23гн | L103: 18.3
D104: хлеб | E104: Хлеб пшеничный, хлеб ржаной, сыр твердых сортов в нарезке | F104: 90 | G104: 11.3 | H104: 9.5 | I104: 24.8 | J104: 229 | K104: Пром, 54-1з | L104: 26.35
D105: фрукты | E105: Мандарины | F105: 100 | G105: 0.8 | H105: 0.2 | I105: 7.5 | J105: 35 | K105: Пром | L105: 24
D108: итого | F108: =SUM(F101:F107) -> 590 | G108: =SUM(G101:G107) -> 22.8 | H108: =SUM(H101:H107) -> 20 | I108: =SUM(I101:I107) -> 68.1 | J108: =SUM(J101:J107) -> 542.7 | L108: =SUM(L101:L107) -> 91.4
A109: =A101 -> 2 | B109: =B101 -> 1 | C109: Обед | D109: закуска
D110: 1 блюдо | E110: Борщ с капустой и картофелем со сметаной | F110: 250 | G110: 5.9 | H110: 7.1 | I110: 12.7 | J110: 138 | K110: 54-2с | L110: 15.8
D111: 2 блюдо | E111: Плов из отварной говядины | F111: 230 | G111: 17.6 | H111: 16.9 | I111: 44.4 | J111: 400.5 | K111: 54-11м | L111: 57.55
D112: гарнир
D113: напиток | E113: Напиток из шиповника | F113: 200 | G113: 0.6 | H113: 0.2 | I113: 15.1 | J113: 65.4 | K113: 54-13хн | L113: 7.29
D114: хлеб бел. | E114: Хлеб пшеничный | F114: 60 | G114: 4.6 | H114: 0.5 | I114: 29.5 | J114: 140.6 | K114: Пром | L114: 4.3
D115: хлеб черн. | E115: Хлеб ржаной | F115: 60 | G115: 4 | H115: 0.7 | I115: 20 | J115: 102.5 | K115: Пром | L115: 6.46
D118: итого | F118: =SUM(F109:F117) -> 800 | G118: =SUM(G109:G117) -> 32.7 | H118: =SUM(H109:H117) -> 25.4 | I118: =SUM(I109:I117) -> 121.7 | J118: =SUM(J109:J117) -> 847 | L118: =SUM(L109:L117) -> 91.4
A119: =A101 -> 2 | B119: =B101 -> 1 | C119: Итого за день: | F119: =F108+F118 -> 1390 | G119: =G108+G118 -> 55.5 | H119: =H108+H118 -> 45.4 | I119: =I108+I118 -> 189.8 | J119: =J108+J118 -> 1389.7 | L119: =L108+L118 -> 182.8
A120: 2 | B120: 2 | C120: Завтрак | D120: гор.блюдо | E120: Горошница, оладьи из печени по- кунцевски | F120: 250 | G120: 28.9 | H120: 11.2 | I120: 47.2 | J120: 404.8 | K120: 54-21г, 54-31м | L120: 63.36
D122: гор.напиток | E122: Чай с лимоном и сахаром | F122: 200 | G122: 0.2 | H122: 0.1 | I122: 6.6 | J122: 27.9 | K122: 54-3гн | L122: 5.38
D123: хлеб | E123: Хлеб пшеничный, хлеб ржаной | F123: 60 | G123: 4.3 | H123: 0.6 | I123: 24.8 | J123: 121.5 | K123: Пром | L123: 5.38
D124: фрукты | E124: Яблоко | F124: 100 | G124: 0.4 | H124: 0.4 | I124: 9.8 | J124: 44.4 | K124: Пром | L124: 17.28
D127: итого | F127: =SUM(F120:F126) -> 610 | G127: =SUM(G120:G126) -> 33.8 | H127: =SUM(H120:H126) -> 12.3 | I127: =SUM(I120:I126) -> 88.4 | J127: =SUM(J120:J126) -> 598.6 | L127: =SUM(L120:L126) -> 91.4
A128: =A120 -> 2 | B128: =B120 -> 2 | C128: Обед | D128: закуска
D129: 1 блюдо | E129: Суп крестьянский с крупой ( перловка ) | F129: 250 | G129: 6.4 | H129: 7.2 | I129: 13.5 | J129: 144.5 | K129: 54-10с | L129: 23.1
D130: 2 блюдо | E130: Рагу из курицы | F130: 260 | G130: 27.3 | H130: 9.1 | I130: 22.75 | J130: 282.5 | K130: 54-22м | L130: 51.63
D131: гарнир
D132: напиток | E132: Компот из изюма | F132: 200 | G132: 0.4 | H132: 0.1 | I132: 18.3 | J132: 75.9 | K132: 54-4хн | L132: 5.91
D133: хлеб бел. | E133: Хлеб пшеничный | F133: 60 | G133: 4.6 | H133: 0.5 | I133: 29.5 | J133: 140.6 | K133: Пром | L133: 4.3
D134: хлеб черн. | E134: Хлеб ржаной | F134: 60 | G134: 4 | H134: 0.7 | I134: 20 | J134: 102.5 | K134: Пром | L134: 6.46
D137: итого | F137: =SUM(F128:F136) -> 830 | G137: =SUM(G128:G136) -> 42.7 | H137: =SUM(H128:H136) -> 17.6 | I137: =SUM(I128:I136) -> 104.05 | J137: =SUM(J128:J136) -> 746 | L137: =SUM(L128:L136) -> 91.4
A138: =A120 -> 2 | B138: =B120 -> 2 | C138: Итого за день: | F138: =F127+F137 -> 1440 | G138: =G127+G137 -> 76.5 | H138: =H127+H137 -> 29.9 | I138: =I127+I137 -> 192.45 | J138: =J127+J137 -> 1344.6 | L138: =L127+L137 -> 182.8
A139: 2 | B139: 3 | C139: Завтрак | D139: гор.блюдо | E139: Каша вязкая молочная ячневая | F139: 200 | G139: 7.2 | H139: 9.3 | I139: 34.1 | J139: 249 | K139: 54-21к | L139: 24.85
D141: гор.напиток | E141: Чай с клюквой и сахаром | F141: 200 | G141: 0.2 | H141: 0.1 | I141: 6.8 | J141: 28.9 | K141: 54-10гн | L141: 20.82
D142: хлеб | E142: Хлеб пшеничный, хлеб ржаной, масло сливочное порциями | F142: 80 | G142: 4.5 | H142: 15.1 | I142: 25.1 | J142: 253.7 | K142: Пром, 53-19з | L142: 21.73
D143: фрукты | E143: Мандарины | F143: 100 | G143: 0.8 | H143: 0.2 | I143: 7.5 | J143: 35 | K143: Пром | L143: 24
D146: итого | F146: =SUM(F139:F145) -> 580 | G146: =SUM(G139:G145) -> 12.7 | H146: =SUM(H139:H145) -> 24.7 | I146: =SUM(I139:I145) -> 73.5 | J146: =SUM(J139:J145) -> 566.6 | L146: =SUM(L139:L145) -> 91.4
A147: =A139 -> 2 | B147: =B139 -> 3 | C147: Обед | D147: закуска
D148: 1 блюдо | E148: Суп с рыбными консервами ( сайра ) | F148: 250 | G148: 7.4 | H148: 8.4 | I148: 15.7 | J148: 168.3 | K148: 54-7с | L148: 25.61
D149: 2 блюдо | E149: Шницель из говядины, соус красный основной | F149: 105 | G149: 16.2 | H149: 15.3 | I149: 15.8 | J149: 265.1 | K149: 54-7м, 54-3соус | L149: 36.58
D150: гарнир | E150: Рис припущенный | F150: 150 | G150: 3.5 | H150: 4.8 | I150: 35 | J150: 196.8 | K150: 54-7г | L150: 11.69
D151: напиток | E151: Компот из облепихи | F151: 200 | G151: 0.2 | H151: 1 | I151: 7.4 | J151: 39 | K151: 54-32хн | L151: 6.76
D152: хлеб бел. | E152: Хлеб пшеничный | F152: 60 | G152: 4.6 | H152: 0.5 | I152: 29.5 | J152: 140.6 | K152: Пром | L152: 4.3
D153: хлеб черн. | E153: Хлеб ржаной | F153: 60 | G153: 4 | H153: 0.7 | I153: 20 | J153: 102.5 | K153: Пром | L153: 6.46
D156: итого | F156: =SUM(F147:F155) -> 825 | G156: =SUM(G147:G155) -> 35.9 | H156: =SUM(H147:H155) -> 30.7 | I156: =SUM(I147:I155) -> 123.4 | J156: =SUM(J147:J155) -> 912.3 | L156: =SUM(L147:L155) -> 91.4
A157: =A139 -> 2 | B157: =B139 -> 3 | C157: Итого за день: | F157: =F146+F156 -> 1405 | G157: =G146+G156 -> 48.6 | H157: =H146+H156 -> 55.4 | I157: =I146+I156 -> 196.9 | J157: =J146+J156 -> 1478.9 | L157: =L146+L156 -> 182.8
A158: 2 | B158: 4 | C158: Завтрак | D158: гор.блюдо | E158: Каша гречневая рассыпчатая, биточек из курицы, соус белый основной | F158: 255 | G158: 24.9 | H158: 10.2 | I158: 48.2 | J158: 384.6 | K158: 54-4г, 54-23м, 54-2соус | L158: 59.48
D160: гор.напиток | E160: Чай с грушей и апельсином | F160: 200 | G160: 0.3 | H160: 0.1 | I160: 1.7 | J160: 9 | K160: 54-20гн | L160: 9.26
D161: хлеб | E161: Хлеб пшеничный, хлеб ржаной | F161: 60 | G161: 4.3 | H161: 0.6 | I161: 24.8 | J161: 121.5 | K161: Пром | L161: 5.38
D162: фрукты | E162: Яблоко | F162: 100 | G162: 0.4 | H162: 0.4 | I162: 9.8 | J162: 44.4 | K162: Пром | L162: 17.28
D165: итого | F165: =SUM(F158:F164) -> 615 | G165: =SUM(G158:G164) -> 29.9 | H165: =SUM(H158:H164) -> 11.3 | I165: =SUM(I158:I164) -> 84.5 | J165: =SUM(J158:J164) -> 559.5 | L165: =SUM(L158:L164) -> 91.4
A166: =A158 -> 2 | B166: =B158 -> 4 | C166: Обед | D166: закуска
D167: 1 блюдо | E167: Суп с клецками | F167: 250 | G167: 5.8 | H167: 4.1 | I167: 14.2 | J167: 117 | K167: 54-6с | L167: 23.48
D168: 2 блюдо | E168: Печень говяжья по- строгановски | F168: 100 | G168: 16.7 | H168: 15.9 | I168: 6.7 | J168: 236.5 | K168: 54-18м | L168: 38.6
D169: гарнир | E169: Макароны отварные | F169: 150 | G169: 5.3 | H169: 4.9 | I169: 32.8 | J169: 196.8 | K169: 54-1г | L169: 9.6
D170: напиток | E170: Компот из кураги | F170: 200 | G170: 1 | H170: 0.1 | I170: 15.6 | J170: 66.9 | K170: 54-2хн | L170: 8.96
D171: хлеб бел. | E171: Хлеб пшеничный | F171: 30 | G171: 2.3 | H171: 0.2 | I171: 14.8 | J171: 70.3 | K171: Пром | L171: 4.3
D172: хлеб черн. | E172: Хлеб ржаной | F172: 30 | G172: 2 | H172: 0.4 | I172: 10 | J172: 51.2 | K172: Пром | L172: 6.46
D175: итого | F175: =SUM(F166:F174) -> 760 | G175: =SUM(G166:G174) -> 33.1 | H175: =SUM(H166:H174) -> 25.6 | I175: =SUM(I166:I174) -> 94.1 | J175: =SUM(J166:J174) -> 738.7 | L175: =SUM(L166:L174) -> 91.4
A176: =A158 -> 2 | B176: =B158 -> 4 | C176: Итого за день: | F176: =F165+F175 -> 1375 | G176: =G165+G175 -> 63 | H176: =H165+H175 -> 36.9 | I176: =I165+I175 -> 178.6 | J176: =J165+J175 -> 1298.2 | L176: =L165+L175 -> 182.8
A177: 2 | B177: 5 | C177: Завтрак | D177: гор.блюдо | E177: Каша жидкая молочная кукурузная | F177: 200 | G177: 5.9 | H177: 5.8 | I177: 33 | J177: 207.8 | K177: 54-1к | L177: 26.95
D179: гор.напиток | E179: Какао с молоком | F179: 200 | G179: 4.7 | H179: 3.5 | I179: 12.5 | J179: 100.4 | K179: 54-21гн | L179: 17.3
D180: хлеб | E180: Хлеб пшеничный, хлеб ржаной, сыр твердых сортов в нарезке | F180: 90 | G180: 11.3 | H180: 9.5 | I180: 24.8 | J180: 229 | K180: Пром, 54-1з | L180: 26.35
D181: фрукты | E181: Мандарины | F181: 100 | G181: 0.8 | H181: 0.2 | I181: 7.5 | J181: 35 | K181: Пром | L181: 20.8
D184: итого | F184: =SUM(F177:F183) -> 590 | G184: =SUM(G177:G183) -> 22.7 | H184: =SUM(H177:H183) -> 19 | I184: =SUM(I177:I183) -> 77.8 | J184: =SUM(J177:J183) -> 572.2 | L184: =SUM(L177:L183) -> 91.4
A185: =A177 -> 2 | B185: =B177 -> 5 | C185: Обед | D185: закуска
D186: 1 блюдо | E186: Рассольник Ленинградский | F186: 250 | G186: 5.9 | H186: 7.2 | I186: 17 | J186: 156.9 | K186: 54-3с | L186: 23.8
D187: 2 блюдо | E187: Тефтели из говядины с рисом, соус красный основной | F187: 160 | G187: 16.5 | H187: 16.1 | I187: 13.4 | J187: 264.3 | K187: 54-16м, 54-3соус | L187: 39.16
D188: гарнир | E188: Каша перловая рассыпчатая | F188: 170 | G188: 5 | H188: 6 | I188: 34.6 | J188: 212 | K188: 54-5г | L188: 9.98
D189: напиток | E189: Компот из свежих яблок | F189: 200 | G189: 0.2 | H189: 0.1 | I189: 9.9 | J189: 41.6 | K189: 54-32хн | L189: 7.7
D190: хлеб бел. | E190: Хлеб пшеничный | F190: 60 | G190: 4.6 | H190: 0.5 | I190: 29.5 | J190: 140.6 | K190: Пром | L190: 4.3
D191: хлеб черн. | E191: Хлеб ржаной | F191: 60 | G191: 4 | H191: 0.7 | I191: 20 | J191: 102.5 | K191: Пром | L191: 6.46
D194: итого | F194: =SUM(F185:F193) -> 900 | G194: =SUM(G185:G193) -> 36.2 | H194: =SUM(H185:H193) -> 30.6 | I194: =SUM(I185:I193) -> 124.4 | J194: =SUM(J185:J193) -> 917.9 | L194: =SUM(L185:L193) -> 91.4
A195: =A177 -> 2 | B195: =B177 -> 5 | C195: Итого за день: | F195: =F184+F194 -> 1490 | G195: =G184+G194 -> 58.9 | H195: =H184+H194 -> 49.6 | I195: =I184+I194 -> 202.2 | J195: =J184+J194 -> 1490.1 | L195: =L184+L194 -> 182.8
C196: Среднее значение за период: | F196: =(F24+F43+F62+F81+F100+F119+F138+F157+F176+F195)/(IF(F24=0,0,1)+IF(F43=0,0,1)+IF(F62=0,0,1)+IF(F81=0,0,1)+IF(F100=0,0,1)+IF(F119=0,0,1)+IF(F138=0,0,1)+IF(F157=0,0,1)+IF(F176=0,0,1)+IF(F195=0,0,1)) -> 1419 | G196: =(G24+G43+G62+G81+G100+G119+G138+G157+G176+G195)/(IF(G24=0,0,1)+IF(G43=0,0,1)+IF(G62=0,0,1)+IF(G81=0,0,1)+IF(G100=0,0,1)+IF(G119=0,0,1)+IF(G138=0,0,1)+IF(G157=0,0,1)+IF(G176=0,0,1)+IF(G195=0,0,1)) -> 58.5 | H196: =(H24+H43+H62+H81+H100+H119+H138+H157+H176+H195)/(IF(H24=0,0,1)+IF(H43=0,0,1)+IF(H62=0,0,1)+IF(H81=0,0,1)+IF(H100=0,0,1)+IF(H119=0,0,1)+IF(H138=0,0,1)+IF(H157=0,0,1)+IF(H176=0,0,1)+IF(H195=0,0,1)) -> 41.11 | I196: =(I24+I43+I62+I81+I100+I119+I138+I157+I176+I195)/(IF(I24=0,0,1)+IF(I43=0,0,1)+IF(I62=0,0,1)+IF(I81=0,0,1)+IF(I100=0,0,1)+IF(I119=0,0,1)+IF(I138=0,0,1)+IF(I157=0,0,1)+IF(I176=0,0,1)+IF(I195=0,0,1)) -> 192.965 | J196: =(J24+J43+J62+J81+J100+J119+J138+J157+J176+J195)/(IF(J24=0,0,1)+IF(J43=0,0,1)+IF(J62=0,0,1)+IF(J81=0,0,1)+IF(J100=0,0,1)+IF(J119=0,0,1)+IF(J138=0,0,1)+IF(J157=0,0,1)+IF(J176=0,0,1)+IF(J195=0,0,1)) -> 1374.77 | L196: =(L24+L43+L62+L81+L100+L119+L138+L157+L176+L195)/(IF(L24=0,0,1)+IF(L43=0,0,1)+IF(L62=0,0,1)+IF(L81=0,0,1)+IF(L100=0,0,1)+IF(L119=0,0,1)+IF(L138=0,0,1)+IF(L157=0,0,1)+IF(L176=0,0,1)+IF(L195=0,0,1)) -> 182.8
